bitfinex/quotes_BTCUSD_20230114
["timestamp","ask_amount","ask_price","bid_price","bid_amount"]
[1673663877849,0.1298021,20958.0,20957.0,0.321664]
[1673663878096,0.28459266,20958.0,20957.0,0.001]
[1673663878607,0.16459266,20958.0,20955.0,0.17736205]
[1673663878864,0.27807974,20958.0,20957.0,0.002]
[1673663879113,0.18661956,20957.0,20953.0,1.24930806]
[1673663879353,0.2,20955.0,20953.0,0.00019]
[1673663879596,0.1770871,20957.0,20953.0,0.15159941]
[1673663879837,0.1770871,20957.0,20953.0,0.34232536]
[1673663880095,0.1770871,20957.0,20954.0,0.14295453]
[1673663880334,0.3120871,20957.0,20954.0,0.14295453]
[1673663880578,0.1770871,20957.0,20954.0,0.14295453]
[1673663880838,0.1770871,20957.0,20951.0,0.83975]
[1673663881096,0.09848708,20956.0,20952.0,0.18992643]
[1673663881334,0.09848708,20955.0,20951.0,0.62049]
[1673663881574,0.09848708,20954.0,20950.0,0.81099968]
[1673663881836,1.95787584,20957.0,20950.0,0.00958003]
[1673663881837,0.09848708,20953.0,20950.0,0.00958003]
[1673663882327,0.16886365,20955.0,20950.0,0.77160301]
[1673663882570,0.40254073,20955.0,20950.0,0.96232896]
[1673663882809,0.16905365,20955.0,20951.0,0.70092334]
[1673663883063,0.135,20953.0,20952.0,0.19134112]
[1673663883318,0.00019,20955.0,20954.0,0.2]
[1673663883550,0.11419,20955.0,20954.0,1.14109]
[1673663884028,0.11419,20955.0,20954.0,0.94109]
[1673663884265,0.11419,20955.0,20954.0,0.46245362]
[1673663884500,0.00019,20955.0,20954.0,0.46245362]
[1673663884744,0.19976721,20957.0,20954.0,0.46245362]
[1673663884983,0.15016733,20956.0,20954.0,0.14176962]
[1673663885223,0.114,20955.0,20954.0,0.14176962]
[1673663885518,0.114,20955.0,20954.0,0.46255362]
[1673663885760,0.18378243,20958.0,20954.0,0.66255362]
[1673663885996,0.18378243,20958.0,20955.0,0.042814]
[1673663886246,0.135,20956.0,20955.0,0.19072595]
[1673663886488,0.135,20956.0,20954.0,0.96217562]
[1673663886735,0.135,20956.0,20955.0,0.320784]
[1673663886963,0.135,20956.0,20955.0,0.49655638]
[1673663887205,0.0098021,20958.0,20956.0,0.2]
[1673663887459,0.0098021,20958.0,20957.0,0.66311]
[1673663888198,0.0098021,20958.0,20957.0,0.86311]
[1673663888448,0.1458021,20958.0,20957.0,1.36018251]
[1673663888731,0.0098021,20958.0,20957.0,2.64971494]
[1673663888972,0.0508021,20958.0,20957.0,3.27003194]
[1673663889221,0.0508021,20958.0,20957.0,2.91512355]
[1673663889467,0.0508021,20958.0,20957.0,3.34229575]
[1673663889709,0.05210229,20958.0,20957.0,3.34229575]
[1673663889957,0.05210229,20958.0,20957.0,2.91512355]
[1673663890204,0.01110229,20958.0,20957.0,2.91512355]
[1673663890449,0.01110229,20958.0,20957.0,3.27053416]
[1673663890691,0.01110229,20958.0,20957.0,3.27053729]
[1673663890942,0.05210229,20958.0,20957.0,2.91512355]
[1673663891416,0.01110229,20958.0,20957.0,2.91512355]
[1673663891668,0.01110229,20958.0,20957.0,4.10366154]
[1673663891957,0.02610229,20958.0,20957.0,4.08776339]
[1673663892190,2.9e-07,20958.0,20957.0,4.08776339]
[1673663892437,0.00971718,20960.0,20957.0,4.12623908]
[1673663892687,0.00971718,20960.0,20959.0,0.47720169]
[1673663892923,0.09850426,20960.0,20959.0,3.69034767]
[1673663893205,1.718e-05,20960.0,20959.0,2.59383143]
[1673663893448,1.718e-05,20960.0,20959.0,3.01993497]
[1673663893702,1.718e-05,20960.0,20959.0,2.73585281]
[1673663893939,1.718e-05,20960.0,20959.0,3.01993095]
[1673663894180,0.01401718,20960.0,20959.0,2.89281268]
[1673663894439,1.718e-05,20960.0,20959.0,2.52274696]
[1673663894661,0.01401718,20960.0,20959.0,2.53774696]
[1673663894899,1.718e-05,20960.0,20959.0,2.90434941]
[1673663895147,0.01401718,20960.0,20959.0,2.70637556]
[1673663896144,0.01401718,20960.0,20959.0,2.56438929]
[1673663896397,0.02801718,20960.0,20959.0,2.57938929]
[1673663896639,1.718e-05,20960.0,20959.0,2.54938929]
[1673663897147,0.09850426,20960.0,20959.0,0.663043]
[1673663897401,0.1722823,20960.0,20959.0,0.663043]
[1673663897650,1.718e-05,20960.0,20959.0,0.663043]
[1673663897894,0.01501718,20960.0,20959.0,0.82115589]
[1673663898167,1.718e-05,20960.0,20959.0,0.80615589]
[1673663898671,1.718e-05,20960.0,20959.0,1.31905956]
[1673663898923,1.718e-05,20960.0,20959.0,1.32357701]
[1673663899168,0.03201718,20960.0,20959.0,1.5184521]
[1673663899420,0.00979753,20963.0,20960.0,0.2]
[1673663899671,0.00979753,20963.0,20961.0,2.80035929]
[1673663899916,0.00979753,20963.0,20962.0,0.70037438]
[1673663900432,0.00979753,20963.0,20962.0,0.90037438]
[1673663900664,0.01779753,20963.0,20962.0,0.90037438]
[1673663900898,0.00979753,20963.0,20962.0,0.22317269]
[1673663901137,0.02179753,20963.0,20962.0,0.22617269]
[1673663902154,0.02179753,20963.0,20962.0,0.42617269]
[1673663902385,0.02179753,20963.0,20962.0,1.34314469]
[1673663902877,0.02179753,20963.0,20962.0,1.48502229]
[1673663903390,0.02179753,20963.0,20962.0,1.32287841]
[1673663903634,0.02179753,20963.0,20962.0,1.14314469]
[1673663903883,0.02179753,20963.0,20962.0,1.32834973]
[1673663904380,0.02179753,20963.0,20962.0,0.85114804]
[1673663905107,0.02179753,20963.0,20962.0,0.665943]
[1673663905108,0.20780217,20963.0,20962.0,0.665943]
[1673663905349,0.20780217,20963.0,20962.0,0.623169]
[1673663905836,0.20780217,20963.0,20962.0,0.943953]
[1673663905837,0.02179753,20963.0,20962.0,0.943953]
[1673663906083,0.02179753,20963.0,20962.0,1.12755722]
[1673663906322,0.02179753,20963.0,20962.0,0.943953]
[1673663906561,0.1923803,20963.0,20962.0,0.943953]
[1673663906815,0.1923803,20963.0,20962.0,0.623169]
[1673663907299,0.02179753,20963.0,20962.0,0.623169]
[1673663907534,0.02179753,20963.0,20962.0,1.12365809]
[1673663907786,0.02179753,20963.0,20962.0,1.26553569]
[1673663908577,0.02179753,20963.0,20962.0,1.47880686]
[1673663909065,0.02179753,20963.0,20962.0,1.12365809]
[1673663909323,0.30759036,20963.0,20962.0,0.943953]
[1673663909579,0.20910328,20963.0,20962.0,0.943953]
[1673663909803,0.21040211,20963.0,20962.0,0.943953]
[1673663910775,0.21040211,20963.0,20962.0,0.623169]
[1673663911501,0.21040211,20963.0,20962.0,0.943953]
[1673663912015,0.19840211,20963.0,20962.0,0.940953]
[1673663912259,0.27840211,20963.0,20962.0,0.944953]
[1673663912494,0.27840211,20963.0,20962.0,0.624169]
[1673663912740,0.19840211,20963.0,20962.0,0.620169]
[1673663912988,0.27840211,20963.0,20962.0,0.624169]
[1673663913235,0.01109636,20963.0,20962.0,0.940953]
[1673663913491,0.01109636,20963.0,20962.0,1.11191273]
[1673663913720,0.01109636,20963.0,20962.0,1.2542451]
[1673663913957,0.01109636,20963.0,20962.0,1.4670615]
[1673663914207,0.09109636,20963.0,20962.0,1.32872913]
[1673663914450,0.01109636,20963.0,20962.0,1.46712151]
[1673663914691,0.09109636,20963.0,20962.0,1.25830511]
[1673663914938,0.01109636,20963.0,20962.0,1.11191273]
[1673663915172,0.01109636,20963.0,20962.0,0.79112873]
[1673663915406,0.01042898,20965.0,20962.0,0.79112873]
[1673663915662,0.00585898,20965.0,20963.0,0.47892398]
[1673663915946,0.00585898,20965.0,20963.0,0.77827698]
[1673663916717,0.00585898,20965.0,20964.0,0.17251187]
[1673663916957,0.00585898,20965.0,20964.0,1.11340587]
[1673663917484,0.11185898,20965.0,20964.0,1.11340587]
[1673663917725,0.11185898,20965.0,20964.0,1.24139834]
[1673663917984,0.21785898,20965.0,20964.0,1.24839834]
[1673663918768,0.21785898,20965.0,20964.0,1.30310278]
[1673663919015,0.21785898,20965.0,20964.0,2.06426595]
[1673663919266,0.21785898,20965.0,20964.0,1.98104279]
[1673663919501,0.06268943,20965.0,20964.0,2.93515116]
[1673663919749,4.3e-07,20965.0,20964.0,3.67141054]
[1673663920013,0.01016971,20967.0,20965.0,0.2]
[1673663920286,0.01016971,20967.0,20966.0,3.76706798]
[1673663920530,7.1e-07,20967.0,20966.0,3.80086379]
[1673663920789,6e-05,20968.0,20966.0,3.80708533]
[1673663921042,0.0055043,20970.0,20967.0,2.41868948]
[1673663921270,0.0055043,20970.0,20968.0,4.19396493]
[1673663921509,0.0055043,20970.0,20969.0,1.22487109]
[1673663921772,0.0055043,20970.0,20969.0,2.51800285]
[1673663922018,0.0055043,20970.0,20969.0,2.08464168]
[1673663922277,0.0055043,20970.0,20969.0,2.09106222]
[1673663922510,0.0055043,20970.0,20969.0,1.65767228]
[1673663922763,0.0055043,20970.0,20969.0,2.09101514]
[1673663923017,0.0055043,20970.0,20969.0,2.51798454]
[1673663923506,0.0108044,20972.0,20969.0,2.65743749]
[1673663923763,0.0108044,20972.0,20971.0,0.63982182]
[1673663924004,0.0108044,20972.0,20971.0,3.21303226]
[1673663924245,0.0108044,20972.0,20971.0,3.14210068]
[1673663924735,0.0108044,20972.0,20971.0,3.35303226]
[1673663924993,0.0108044,20972.0,20971.0,3.49732891]
[1673663925243,0.0108044,20972.0,20971.0,3.49609939]
[1673663925491,0.0018044,20972.0,20971.0,3.21303226]
[1673663925739,0.0018044,20972.0,20971.0,3.35303226]
[1673663925995,0.0018044,20972.0,20971.0,3.39284085]
[1673663926239,0.0018044,20972.0,20971.0,3.67748885]
[1673663926485,0.0018044,20972.0,20971.0,3.53727246]
[1673663926760,0.0018044,20972.0,20971.0,3.39299793]
[1673663927016,6e-05,20975.0,20971.0,3.25299793]
[1673663927249,6e-05,20975.0,20974.0,0.14212942]
[1673663927491,6e-05,20975.0,20974.0,3.41920611]
[1673663927734,0.0108044,20977.0,20975.0,0.2]
[1673663927989,0.0108044,20977.0,20976.0,1.901842]
[1673663929196,0.0586844,20977.0,20976.0,1.901842]
[1673663929447,0.24769134,20977.0,20976.0,1.282087]
[1673663929693,0.24769134,20977.0,20976.0,1.23951]
[1673663930162,0.0108044,20977.0,20976.0,1.23951]
[1673663930682,0.0586844,20977.0,20976.0,1.23951]
[1673663930921,0.22875798,20977.0,20976.0,0.619755]
[1673663931221,0.22875798,20977.0,20974.0,0.16239384]
[1673663931468,0.32724506,20977.0,20974.0,0.78220484]
[1673663931716,0.22875798,20977.0,20974.0,0.78220484]
[1673663931955,0.22875798,20977.0,20974.0,0.619811]
[1673663931956,0.17297174,20976.0,20974.0,0.619811]
[1673663933400,0.0108044,20977.0,20975.0,0.47939129]
[1673663933673,0.0108044,20977.0,20976.0,0.042392]
[1673663933938,0.19719566,20976.0,20975.0,0.619756]
[1673663934441,0.19719566,20976.0,20974.0,0.61981]
[1673663935152,0.19719566,20976.0,20973.0,0.619826]
[1673663935928,0.19719566,20976.0,20973.0,0.79337599]
[1673663936895,0.19419566,20976.0,20973.0,0.79337599]
[1673663937871,0.19419566,20976.0,20973.0,0.619826]
[1673663938101,0.09848708,20976.0,20971.0,0.619879]
[1673663938336,0.0108044,20977.0,20970.0,0.81631467]
[1673663938337,0.09848708,20975.0,20970.0,0.81631467]
[1673663938578,0.09848708,20974.0,20970.0,0.81631467]
[1673663938880,0.09848708,20974.0,20973.0,0.055]
[1673663939137,0.38434248,20976.0,20971.0,0.7956381]
[1673663939353,0.2551466,20976.0,20971.0,0.98636405]
[1673663939588,0.15897175,20975.0,20971.0,0.98636405]
[1673663939832,0.25745883,20975.0,20973.0,0.004]
[1673663940071,0.15897175,20975.0,20972.0,0.61987]
[1673663940327,0.33537444,20974.0,20971.0,0.619892]
[1673663940602,0.16463244,20974.0,20971.0,0.619892]
[1673663940853,0.16463244,20974.0,20971.0,0.79633945]
[1673663941329,0.16463244,20974.0,20971.0,0.619892]
[1673663941599,0.09848708,20973.0,20968.0,0.619977]
[1673663941826,0.619787,20975.0,20968.0,0.619977]
[1673663941827,0.46922908,20972.0,20968.0,0.619977]
[1673663942082,0.26922908,20971.0,20968.0,0.619977]
[1673663942327,0.09848708,20971.0,20968.0,0.619977]
[1673663942827,0.1647005,20970.0,20968.0,0.619977]
[1673663943082,0.1647005,20970.0,20968.0,0.674977]
[1673663943336,0.1647005,20970.0,20968.0,0.619977]
[1673663944323,0.14269616,20972.0,20969.0,0.19142787]
[1673663944574,0.17630479,20971.0,20969.0,1.00210482]
[1673663944814,0.17630479,20971.0,20969.0,0.81137887]
[1673663945297,0.17630479,20971.0,20968.0,0.619977]
[1673663945526,0.18065666,20970.0,20968.0,0.619977]
[1673663946031,0.09848708,20970.0,20964.0,1.00887549]
[1673663946290,0.26922908,20969.0,20964.0,0.00922671]
[1673663946538,0.09848708,20968.0,20964.0,0.00922671]
[1673663946799,0.619972,20969.0,20964.0,0.00922671]
[1673663946800,0.46922908,20967.0,20964.0,0.00922671]
[1673663947041,0.09848708,20967.0,20964.0,0.00922671]
[1673663947293,0.170742,20966.0,20964.0,0.00922671]
[1673663947530,0.170742,20965.0,20964.0,0.00922671]
[1673663947777,1.0679201,20969.0,20964.0,0.00922671]
[1673663948032,0.71845908,20969.0,20964.0,0.19995266]
[1673663948260,0.170742,20968.0,20964.0,0.19995266]
[1673663948500,0.71845908,20969.0,20964.0,0.00922671]
[1673663948738,0.33465153,20968.0,20964.0,0.25495266]
[1673663949028,0.33465153,20968.0,20964.0,0.00922671]
[1673663949029,0.71848108,20968.0,20964.0,0.00922671]
[1673663949291,0.170742,20967.0,20964.0,0.00922671]
[1673663949528,0.71848108,20968.0,20964.0,0.00922671]
[1673663949529,0.15878098,20968.0,20964.0,0.00922671]
[1673663949753,0.170742,20967.0,20964.0,0.19995266]
[1673663949998,1.12373,20970.0,20965.0,0.38312932]
[1673663950238,0.00013,20970.0,20966.0,1.43079795]
[1673663950487,0.15276835,20971.0,20967.0,0.19072595]
[1673663950784,0.14340101,20970.0,20968.0,0.19072595]
[1673663951000,2.6025,20973.0,20968.0,0.619991]
[1673663951236,0.0108044,20977.0,20969.0,0.6928454]
[1673663951492,0.19098131,20974.0,20971.0,1.239782]
[1673663951723,0.0108044,20977.0,20972.0,0.51145795]
[1673663951724,0.16982618,20975.0,20972.0,0.51145795]
[1673663951962,0.16982618,20975.0,20973.0,1.282172]
[1673663952216,0.16973811,20975.0,20974.0,0.320699]
[1673663952466,0.0109344,20977.0,20974.0,0.320784]
[1673663952722,0.14468058,20976.0,20974.0,0.19072595]
[1673663952970,0.14468058,20976.0,20973.0,1.239669]
[1673663953204,0.14468058,20976.0,20974.0,0.623811]
[1673663953444,0.14468058,20976.0,20974.0,0.619811]
[1673663953724,0.0109344,20977.0,20974.0,0.619811]
[1673663953968,0.15740146,20977.0,20974.0,0.623811]
[1673663954205,0.18700732,20976.0,20974.0,0.19272063]
[1673663954463,0.0108044,20977.0,20974.0,0.81253463]
[1673663954703,0.0108044,20977.0,20975.0,0.19011861]
[1673663955440,0.0108044,20977.0,20976.0,0.19072595]
[1673663955691,0.0108044,20977.0,20976.0,0.320784]
[1673663955922,0.0108044,20977.0,20976.0,0.940539]
[1673663956929,0.0108044,20977.0,20976.0,1.41774069]
[1673663957423,0.0108044,20977.0,20976.0,1.75987011]
[1673663957935,0.0108044,20977.0,20976.0,1.81487011]
[1673663958204,0.0108044,20977.0,20976.0,1.97306423]
[1673663958679,0.0108044,20977.0,20976.0,1.83093481]
[1673663958931,0.0108044,20977.0,20976.0,1.75774069]
[1673663960393,0.0108044,20977.0,20976.0,1.81075866]
[1673663960631,0.0108044,20977.0,20976.0,1.55874069]
[1673663960878,0.0108044,20977.0,20976.0,1.61774069]
[1673663961109,0.0108044,20977.0,20976.0,1.75974069]
[1673663961372,0.0108044,20977.0,20976.0,1.61774069]
[1673663961648,0.0108044,20977.0,20976.0,1.75974069]
[1673663961897,0.0108044,20977.0,20976.0,1.61774069]
[1673663962146,0.0108044,20977.0,20976.0,1.90206369]
[1673663962396,0.0108044,20977.0,20976.0,1.97325781]
[1673663962928,0.0108044,20977.0,20976.0,1.76006369]
[1673663963385,0.0108044,20977.0,20976.0,1.90206369]
[1673663963629,0.0108044,20977.0,20976.0,1.97325781]
[1673663963869,0.0108044,20977.0,20976.0,2.25732306]
[1673663964348,0.0108044,20977.0,20976.0,2.1367589]
[1673663964841,0.0108044,20977.0,20976.0,1.9235121]
[1673663965083,0.0108044,20977.0,20976.0,2.0635121]
[1673663965346,0.0108044,20977.0,20976.0,1.78134756]
[1673663965606,0.0108044,20977.0,20976.0,1.58134756]
[1673663965859,0.0108044,20977.0,20976.0,1.10414587]
[1673663966126,0.0108044,20977.0,20976.0,1.22714587]
[1673663966370,0.0108044,20977.0,20976.0,1.140539]
[1673663966612,0.0108044,20977.0,20976.0,1.42645613]
[1673663966858,0.0108044,20977.0,20976.0,0.443784]
[1673663967113,0.21070725,20977.0,20976.0,0.123]
[1673663967604,0.0108044,20977.0,20976.0,0.123]
[1673663967842,0.0108044,20977.0,20976.0,0.742755]
[1673663968087,0.0108044,20977.0,20976.0,0.940539]
[1673663968574,0.0108044,20977.0,20976.0,0.619755]
[1673663969072,0.21103722,20977.0,20974.0,0.619796]
[1673663969353,0.3095243,20977.0,20974.0,0.619796]
[1673663969597,0.15463619,20976.0,20974.0,0.619796]
[1673663970084,0.15463619,20976.0,20974.0,0.79757641]
[1673663970331,0.17013686,20977.0,20975.0,0.320784]
[1673663970587,0.17013686,20977.0,20975.0,0.619781]
[1673663971335,0.17013686,20977.0,20975.0,0.76553723]
[1673663971576,0.17013686,20977.0,20975.0,0.82053723]
[1673663972063,0.17013686,20977.0,20975.0,0.76553723]
[1673663972302,0.17013686,20977.0,20975.0,0.619781]
[1673663972547,0.17890629,20976.0,20975.0,0.619781]
[1673663973844,0.17890629,20976.0,20975.0,0.674781]
[1673663974176,0.17890629,20976.0,20975.0,0.055]
[1673663974615,0.17890629,20976.0,20975.0,0.05488533]
[1673663974855,0.17890629,20976.0,20974.0,0.81027202]
[1673663975106,0.17890629,20976.0,20974.0,0.619796]
[1673663975596,0.17890629,20976.0,20974.0,0.78694801]
[1673663975842,0.0108044,20977.0,20974.0,0.78694801]
[1673663976093,0.18998627,20977.0,20975.0,0.47623303]
[1673663976359,0.18998627,20977.0,20975.0,0.15544903]
[1673663976610,0.18998627,20977.0,20975.0,0.77522403]
[1673663977332,0.18998627,20977.0,20975.0,0.619775]
[1673663977832,0.18538392,20976.0,20975.0,0.619775]
[1673663978077,0.0108044,20977.0,20975.0,0.619784]
[1673663978314,0.0108044,20977.0,20976.0,0.14792611]
[1673663978569,0.0108044,20977.0,20976.0,0.76768111]
[1673663979557,0.0108044,20977.0,20976.0,0.619755]
[1673663979796,0.0108044,20977.0,20976.0,0.81751572]
[1673663980524,0.0108044,20977.0,20976.0,1.13829972]
[1673663981024,0.0108044,20977.0,20976.0,1.41774069]
[1673663981282,0.0108044,20977.0,20976.0,1.61774069]
[1673663982040,0.0108044,20977.0,20976.0,1.60025718]
[1673663982573,0.0108044,20977.0,20976.0,1.54074069]
[1673663983068,0.0108044,20977.0,20976.0,1.74074069]
[1673663984047,0.0108044,20977.0,20976.0,1.71015594]
[1673663984546,0.0108044,20977.0,20976.0,1.91015594]
[1673663984789,0.0108044,20977.0,20976.0,1.78715594]
[1673663985034,0.0108044,20977.0,20976.0,1.61774069]
[1673663985290,0.0108044,20977.0,20976.0,1.74074069]
[1673663985530,0.0108044,20977.0,20976.0,1.89494727]
[1673663985770,0.0108044,20977.0,20976.0,1.74074069]
[1673663986013,0.0108044,20977.0,20976.0,1.81743656]
[1673663986263,0.0108044,20977.0,20976.0,1.94043656]
[1673663986748,0.0108044,20977.0,20976.0,1.74074069]
[1673663987517,0.0108044,20977.0,20976.0,1.88290523]
[1673663987765,0.0108044,20977.0,20976.0,2.09606423]
[1673663988522,0.0108044,20977.0,20976.0,2.38064932]
[1673663989271,0.0108044,20977.0,20976.0,1.76089432]
[1673663989520,0.0108044,20977.0,20976.0,2.09606423]
[1673663989763,0.0108044,20977.0,20976.0,1.74074069]
[1673663990011,0.01101544,20978.0,20976.0,2.16771009]
[1673663990255,0.01101544,20978.0,20977.0,0.71957269]
[1673663990504,0.01101544,20978.0,20977.0,2.78196068]
[1673663990760,0.01101544,20978.0,20977.0,2.49697]
[1673663990987,0.01101544,20978.0,20977.0,2.76060564]
[1673663991222,0.01101544,20978.0,20977.0,2.65524983]
[1673663991458,0.01101544,20978.0,20977.0,2.37025757]
[1673663991694,0.01101544,20978.0,20977.0,2.01402469]
[1673663993687,0.01101544,20978.0,20977.0,2.44099409]
[1673663994237,0.01101544,20978.0,20977.0,2.01402469]
[1673663994547,0.01101544,20978.0,20977.0,2.44099409]
[1673663995214,0.0108044,20979.0,20977.0,2.44099409]
[1673663995448,0.01218782,20981.0,20978.0,2.1783708]
[1673663995698,0.01218782,20981.0,20980.0,0.35620968]
[1673663995958,0.01205782,20981.0,20980.0,0.79791869]
[1673663996202,0.01205782,20981.0,20980.0,1.77376654]
[1673663996440,0.01205782,20981.0,20980.0,2.20999044]
[1673663996687,0.18666634,20981.0,20980.0,0.940354]
[1673663996936,0.01205782,20981.0,20980.0,1.56006049]
[1673663997174,0.01205782,20981.0,20980.0,1.91626902]
[1673663997410,0.01205782,20981.0,20980.0,2.05874046]
[1673663997650,0.01205782,20981.0,20980.0,2.06274046]
[1673663997893,0.01205782,20981.0,20980.0,1.97776654]
[1673663998374,0.01205782,20981.0,20980.0,2.15816047]
[1673663998606,0.01205782,20981.0,20980.0,2.41152284]
[1673663998857,0.01205782,20981.0,20980.0,2.06265279]
[1673663999329,0.01205782,20981.0,20980.0,2.26265279]
[1673664000074,0.01205782,20981.0,20980.0,2.06265279]
[1673664000795,0.01205782,20981.0,20980.0,1.77776654]
[1673664001027,0.01205782,20981.0,20980.0,1.97776654]
[1673664001506,0.01205782,20981.0,20980.0,1.62155569]
[1673664001746,0.01205782,20981.0,20980.0,2.11936811]
[1673664001989,0.1105449,20981.0,20980.0,1.08676008]
[1673664002241,0.2006952,20981.0,20980.0,0.623637]
[1673664003234,0.01205782,20981.0,20980.0,0.623637]
[1673664003479,0.01205782,20981.0,20980.0,0.817869]
[1673664004232,0.01205782,20981.0,20980.0,0.623637]
[1673664004233,0.1105449,20981.0,20980.0,0.623637]
[1673664004487,0.23605997,20981.0,20980.0,0.004]
[1673664004996,0.06540782,20981.0,20980.0,0.004]
[1673664005243,0.3902854,20981.0,20980.0,0.004]
[1673664005474,0.43502912,20981.0,20980.0,0.004]
[1673664005968,0.23614982,20981.0,20980.0,0.004]
[1673664006217,0.23614982,20981.0,20978.0,0.16753969]
[1673664006218,0.35888308,20981.0,20978.0,0.16753969]
[1673664006462,0.18814108,20981.0,20976.0,0.97573497]
[1673664006699,0.09848708,20980.0,20977.0,0.18915773]
[1673664006937,0.18814108,20981.0,20977.0,0.18915773]
[1673664007175,0.17244998,20980.0,20978.0,0.17319948]
[1673664007436,0.17244998,20980.0,20978.0,0.61969]
[1673664012645,0.01205782,20981.0,20978.0,1.28761764]
[1673664012904,0.01205782,20981.0,20979.0,0.96297881]
[1673664013140,0.01205782,20981.0,20980.0,1.281584]
[1673664013391,0.01205782,20981.0,20980.0,1.239274]
[1673664013889,0.15354023,20981.0,20980.0,1.239274]
[1673664014128,0.19216965,20980.0,20978.0,1.239382]
[1673664014367,0.170742,20979.0,20978.0,1.239382]
[1673664014647,0.19216965,20980.0,20978.0,1.239382]
[1673664016821,0.19216965,20980.0,20978.0,1.39743264]
[1673664017906,0.19216965,20980.0,20978.0,1.239382]
[1673664020018,0.01205782,20981.0,20978.0,1.239382]
[1673664020241,0.01205782,20981.0,20979.0,0.15302458]
[1673664020464,0.01205782,20981.0,20980.0,0.619637]
[1673664021184,0.37286246,20981.0,20980.0,0.619637]
[1673664021436,0.18279982,20981.0,20978.0,0.62969]
[1673664021659,0.33707099,20980.0,20978.0,0.62969]
[1673664021901,0.16632899,20980.0,20978.0,0.62969]
[1673664022131,0.170742,20979.0,20978.0,0.62969]
[1673664022370,0.16632899,20980.0,20978.0,0.62969]
[1673664022857,0.01141812,20983.0,20978.0,0.62969]
[1673664023105,0.01141812,20983.0,20979.0,0.57432089]
[1673664023337,0.01141812,20983.0,20980.0,1.901201]
[1673664023574,0.01141812,20983.0,20982.0,0.2]
[1673664023836,0.01141812,20983.0,20982.0,2.101037]
[1673664024549,0.01141812,20983.0,20982.0,2.57823869]
[1673664024775,0.01141812,20983.0,20982.0,2.86617315]
[1673664025038,0.01141812,20983.0,20982.0,3.01876332]
[1673664025558,0.01089428,20986.0,20983.0,0.2]
[1673664025796,0.7114634,20993.0,20985.0,0.47720169]
[1673664026047,0.7114634,20993.0,20986.0,3.01643954]
[1673664026299,0.7114634,20993.0,20987.0,0.79785269]
[1673664026540,0.85845721,20993.0,20987.0,1.92012781]
[1673664027025,0.16328502,20990.0,20987.0,1.41728369]
[1673664027484,0.16328502,20990.0,20987.0,1.55728369]
[1673664027731,0.16328502,20990.0,20987.0,1.41728369]
[1673664027956,0.16328502,20990.0,20987.0,1.55728369]
[1673664028194,0.7114634,20993.0,20987.0,1.55728369]
[1673664028195,0.7114634,20993.0,20987.0,1.41728369]
[1673664028431,0.16372644,20988.0,20987.0,1.56128369]
[1673664028659,0.16372644,20988.0,20987.0,0.619431]
[1673664028915,0.16372644,20988.0,20986.0,0.61946]
[1673664029149,0.15537939,20988.0,20986.0,0.61946]
[1673664029620,0.15537939,20988.0,20985.0,0.619474]
[1673664029621,0.15537939,20988.0,20987.0,0.143]
[1673664029873,0.32612139,20988.0,20985.0,0.619474]
[1673664030151,0.01165176,20988.0,20986.0,0.056]
[1673664030420,0.170742,20987.0,20985.0,0.619474]
[1673664030647,0.20979582,20988.0,20985.0,0.619474]
[1673664030884,0.20979582,20988.0,20985.0,0.79304463]
[1673664031102,0.01165176,20988.0,20986.0,0.17311173]
[1673664031355,0.01165176,20988.0,20987.0,1.71606369]
[1673664031571,0.01165176,20988.0,20987.0,2.03684769]
[1673664033017,0.04024036,20988.0,20987.0,2.23684769]
[1673664033259,0.04024036,20988.0,20987.0,2.37984769]
[1673664033494,0.04024036,20988.0,20987.0,2.23684769]
[1673664033720,0.04024036,20988.0,20987.0,2.53134759]
[1673664033945,0.04024036,20988.0,20987.0,2.23121065]
[1673664034170,0.04024036,20988.0,20987.0,2.37121065]
[1673664034634,0.04024036,20988.0,20987.0,2.37684769]
[1673664034872,0.04024036,20988.0,20987.0,2.55434938]
[1673664035101,0.04024036,20988.0,20987.0,2.37684769]
[1673664035337,0.04024036,20988.0,20987.0,2.23684769]
[1673664035816,0.04024036,20988.0,20987.0,2.37784769]
[1673664036051,0.04024036,20988.0,20987.0,2.54561904]
[1673664036289,0.03524036,20988.0,20987.0,2.37784769]
[1673664036804,0.03524036,20988.0,20987.0,2.52004934]
[1673664037498,0.03524036,20988.0,20987.0,2.37784769]
[1673664037953,0.03524036,20988.0,20987.0,2.23684769]
[1673664038901,0.03524036,20988.0,20987.0,2.37904934]
[1673664039420,0.03524036,20988.0,20987.0,3.02467654]
[1673664039662,3.6e-07,20988.0,20987.0,2.56977529]
[1673664039891,0.01309017,20993.0,20988.0,0.2]
[1673664040136,0.01309017,20993.0,20989.0,3.14006377]
[1673664040407,0.01309017,20993.0,20991.0,0.2]
[1673664040660,0.19787496,20993.0,20992.0,1.75790569]
[1673664040886,0.01309017,20993.0,20992.0,1.71576769]
[1673664041381,0.01309017,20993.0,20992.0,2.03655169]
[1673664041838,0.01309017,20993.0,20992.0,2.21121706]
[1673664042531,0.01309017,20993.0,20992.0,1.89043306]
[1673664042765,0.01309017,20993.0,20992.0,2.21121706]
[1673664042981,0.01309017,20993.0,20992.0,2.03655169]
[1673664043221,0.01309017,20993.0,20992.0,2.18594301]
[1673664044138,0.01309017,20993.0,20992.0,1.238566]
[1673664044139,0.23830699,20993.0,20992.0,1.238566]
[1673664044384,0.24283635,20993.0,20990.0,0.61932]
[1673664044616,0.170742,20992.0,20990.0,1.09652169]
[1673664044846,0.18948635,20993.0,20990.0,1.09653869]
[1673664045635,0.01309017,20993.0,20990.0,0.619337]
[1673664046085,0.170742,20992.0,20990.0,0.619337]
[1673664046320,0.170742,20992.0,20989.0,0.619357]
[1673664046561,0.01309017,20993.0,20989.0,1.09655869]
[1673664046799,0.1712463,20992.0,20989.0,1.09655869]
[1673664047028,0.01309017,20993.0,20989.0,0.47720169]
[1673664047252,0.170742,20992.0,20988.0,0.619384]
[1673664047481,0.09848708,20992.0,20988.0,1.09658569]
[1673664047706,0.170742,20991.0,20988.0,1.09658569]
[1673664047942,0.09848708,20992.0,20988.0,1.09658569]
[1673664048196,0.15694619,20992.0,20988.0,1.09658569]
[1673664048411,0.15694619,20992.0,20988.0,0.619384]
[1673664048412,0.09848708,20992.0,20988.0,0.619384]
[1673664048641,0.170742,20991.0,20985.0,0.76680219]
[1673664048867,0.09848708,20990.0,20986.0,0.00019]
[1673664049098,0.170742,20989.0,20986.0,0.19807742]
[1673664049327,0.16719681,20988.0,20986.0,0.00019]
[1673664049546,0.16719681,20988.0,20986.0,0.619646]
[1673664050731,0.16719681,20988.0,20986.0,0.619456]
[1673664051428,0.09848708,20991.0,20986.0,0.77078751]
[1673664051686,0.17468147,20990.0,20987.0,0.35874208]
[1673664051977,0.17468147,20990.0,20988.0,0.15128872]